[Event "*** Titled Tuesday 3|2 Blitz (Early)"]
[Site "Chess.com"]
[Date "2016.12.06"]
[Round "6"]
[White "Ar4uha"]
[Black "jcibarra"]
[Result "0-1"]
[WhiteElo "2452"]
[BlackElo "2634"]
[TimeControl "180+2"]
[EndTime "12:14:01 PST"]
[Termination "jcibarra won by resignation"]

1. e4 {[%clk 0:03:02]} 1... e5 {[%clk 0:02:59.1]} 2. Nf3 {[%clk 0:03:03.4]} 2...
Nc6 {[%clk 0:03:00.5]} 3. d4 {[%clk 0:03:04.6]} 3... exd4 {[%clk 0:03:01.5]} 4.
Nxd4 {[%clk 0:03:06.5]} 4... Nf6 {[%clk 0:03:03.1]} 5. Nxc6 {[%clk 0:03:05]}
5... bxc6 {[%clk 0:03:04.4]} 6. Bd3 {[%clk 0:03:06.6]} 6... d5 {[%clk
0:03:05.1]} 7. O-O {[%clk 0:03:08.3]} 7... dxe4 {[%clk 0:02:59.6]} 8. Qe1 {[%clk
0:03:09.7]} 8... Bf5 {[%clk 0:02:55.4]} 9. Bg5 {[%clk 0:03:10]} 9... Qe7 {[%clk
0:02:49.8]} 10. Bxf6 {[%clk 0:03:03.4]} 10... gxf6 {[%clk 0:02:50.2]} 11. Bc4
{[%clk 0:03:02.9]} 11... Bh6 {[%clk 0:02:47.4]} 12. Nc3 {[%clk 0:03:01.5]} 12...
O-O {[%clk 0:02:47.9]} 13. Qe2 {[%clk 0:03:00.1]} 13... Bg6 {[%clk 0:02:44.7]}
14. h4 {[%clk 0:02:46.3]} 14... Qe5 {[%clk 0:02:42.5]} 15. Rfe1 {[%clk
0:02:39.1]} 15... Rfe8 {[%clk 0:02:43]} 16. Qg4 {[%clk 0:02:35.8]} 16... f5
{[%clk 0:02:41.1]} 17. Qh3 {[%clk 0:02:36.7]} 17... Bh5 {[%clk 0:02:36.8]} 18.
Be2 {[%clk 0:02:31.3]} 18... Bxe2 {[%clk 0:02:33]} 19. Rxe2 {[%clk 0:02:33.2]}
19... Rab8 {[%clk 0:02:30.4]} 20. Rae1 {[%clk 0:02:22.3]} 20... Rxb2 {[%clk
0:02:28.6]} 21. Nxe4 {[%clk 0:02:09.7]} 21... fxe4 {[%clk 0:02:29.3]} 22. Rxe4
{[%clk 0:02:10.9]} 22... Qxe4 {[%clk 0:02:27.3]} 23. Qg3+ {[%clk 0:01:48.8]}
23... Bg7 {[%clk 0:02:26.5]} 24. Rxe4 {[%clk 0:01:49.8]} 24... Rxe4 {[%clk
0:02:28.4]} 25. Qxc7 {[%clk 0:01:51.6]} 25... Re1+ {[%clk 0:02:29.3]} 26. Kh2
{[%clk 0:01:52.2]} 26... Be5+ {[%clk 0:02:31.2]} 0-1

[Event "*** Titled Tuesday 3|2 Blitz (Early)"]
[Site "Chess.com"]
[Date "2016.12.06"]
[Round "6"]
[White "Astaneh"]
[Black "Schemato"]
[Result "1-0"]
[WhiteElo "2469"]
[BlackElo "2302"]
[TimeControl "180+2"]
[EndTime "12:14:52 PST"]
[Termination "Astaneh won by resignation"]

1. d4 {[%clk 0:03:02]} 1... e6 {[%clk 0:03:00.8]} 2. c4 {[%clk 0:03:00.3]} 2...
f5 {[%clk 0:03:01.8]} 3. Nf3 {[%clk 0:03:00.5]} 3... Nf6 {[%clk 0:03:02.9]} 4.
g3 {[%clk 0:03:00.9]} 4... c6 {[%clk 0:02:58.5]} 5. Bg2 {[%clk 0:02:59.9]} 5...
d5 {[%clk 0:02:59.6]} 6. b3 {[%clk 0:02:59.2]} 6... Bd6 {[%clk 0:02:59.5]} 7.
O-O {[%clk 0:03:00.4]} 7... Qe7 {[%clk 0:02:59.8]} 8. a4 {[%clk 0:03:01.2]} 8...
a5 {[%clk 0:02:55.6]} 9. Ba3 {[%clk 0:03:02.1]} 9... Bxa3 {[%clk 0:02:53.1]} 10.
Nxa3 {[%clk 0:03:03.2]} 10... O-O {[%clk 0:02:54.7]} 11. e3 {[%clk 0:02:59.5]}
11... Nbd7 {[%clk 0:02:55.6]} 12. Nc2 {[%clk 0:02:57.5]} 12... b6 {[%clk
0:02:56]} 13. Nce1 {[%clk 0:02:57.2]} 13... Bb7 {[%clk 0:02:54.8]} 14. Nd3
{[%clk 0:02:57.8]} 14... c5 {[%clk 0:02:48.2]} 15. Rc1 {[%clk 0:02:42.5]} 15...
Rac8 {[%clk 0:02:46.2]} 16. cxd5 {[%clk 0:02:28.3]} 16... Bxd5 {[%clk
0:02:41.4]} 17. dxc5 {[%clk 0:02:05.8]} 17... Nxc5 {[%clk 0:02:41.5]} 18. Nxc5
{[%clk 0:02:06.7]} 18... Rxc5 {[%clk 0:02:42]} 19. Rxc5 {[%clk 0:02:07.4]} 19...
Qxc5 {[%clk 0:02:42.5]} 20. Nd4 {[%clk 0:02:08.9]} 20... Rd8 {[%clk 0:02:11.8]}
21. Nxe6 {[%clk 0:02:02.7]} 21... Bxe6 {[%clk 0:02:03.9]} 22. Qxd8+ {[%clk
0:02:03.2]} 22... Kf7 {[%clk 0:02:05.4]} 23. Qd3 {[%clk 0:01:53.6]} 23... Qb4
{[%clk 0:01:59.5]} 24. Rb1 {[%clk 0:01:49.8]} 24... Ng4 {[%clk 0:01:48.9]} 25.
Bd5 {[%clk 0:01:46.4]} 25... Ne5 {[%clk 0:01:46.1]} 26. Qxf5+ {[%clk 0:01:47.1]}
1-0

[Event "*** Titled Tuesday 3|2 Blitz (Early)"]
[Site "Chess.com"]
[Date "2016.12.06"]
[Round "6"]
[White "MateusViageiro"]
[Black "PowerThinking2650"]
[Result "1-0"]
[WhiteElo "2266"]
[BlackElo "2135"]
[TimeControl "180+2"]
[EndTime "12:14:53 PST"]
[Termination "MateusViageiro won by resignation"]

1. e4 {[%clk 0:03:01.9]} 1... e5 {[%clk 0:03:00.2]} 2. Nf3 {[%clk 0:03:02]} 2...
Nc6 {[%clk 0:03:01]} 3. Bb5 {[%clk 0:03:03.5]} 3... a6 {[%clk 0:03:01.4]} 4. Ba4
{[%clk 0:03:05]} 4... Nf6 {[%clk 0:03:02.2]} 5. Bxc6 {[%clk 0:03:06.4]} 5...
dxc6 {[%clk 0:03:02.9]} 6. d3 {[%clk 0:03:07.4]} 6... Nd7 {[%clk 0:02:58.9]} 7.
Nbd2 {[%clk 0:03:08.2]} 7... Bd6 {[%clk 0:02:56.4]} 8. Nc4 {[%clk 0:03:08.9]}
8... f6 {[%clk 0:02:57.2]} 9. Bd2 {[%clk 0:03:08.6]} 9... Nc5 {[%clk 0:02:54.3]}
10. Qe2 {[%clk 0:03:07.6]} 10... Bg4 {[%clk 0:02:53.9]} 11. h3 {[%clk
0:03:07.7]} 11... Bh5 {[%clk 0:02:54.5]} 12. g4 {[%clk 0:03:08.7]} 12... Bf7
{[%clk 0:02:54.5]} 13. Ne3 {[%clk 0:03:10.1]} 13... Ne6 {[%clk 0:02:53.2]} 14.
Nf5 {[%clk 0:03:10.4]} 14... Qd7 {[%clk 0:02:49.3]} 15. O-O-O {[%clk 0:03:09.9]}
15... c5 {[%clk 0:02:49.1]} 16. Kb1 {[%clk 0:03:10.8]} 16... O-O-O {[%clk
0:02:49.4]} 17. Rhg1 {[%clk 0:03:07.4]} 17... h6 {[%clk 0:02:44.5]} 18. h4
{[%clk 0:03:06.6]} 18... Qa4 {[%clk 0:02:37.8]} 19. b3 {[%clk 0:03:04.7]} 19...
Qa3 {[%clk 0:02:36.8]} 20. Bc1 {[%clk 0:03:04.9]} 20... Qa5 {[%clk 0:02:37.2]}
21. g5 {[%clk 0:03:04.9]} 21... hxg5 {[%clk 0:02:37.1]} 22. hxg5 {[%clk
0:03:06]} 22... Bh5 {[%clk 0:02:34.3]} 23. gxf6 {[%clk 0:02:58.1]} 23... gxf6
{[%clk 0:02:27.5]} 24. Qe3 {[%clk 0:02:50.9]} 24... Ng5 {[%clk 0:02:16.3]} 25.
Nxg5 {[%clk 0:02:51.3]} 25... Bxd1 {[%clk 0:02:16.1]} 26. Nf7 {[%clk 0:02:51.4]}
26... Bxc2+ {[%clk 0:02:09.6]} 27. Kxc2 {[%clk 0:02:50.8]} 27... Qxa2+ {[%clk
0:02:10.1]} 28. Bb2 {[%clk 0:02:51.7]} 28... c4 {[%clk 0:02:08.4]} 29. N5xd6+
{[%clk 0:02:44.3]} 29... cxd6 {[%clk 0:02:00.7]} 30. dxc4 {[%clk 0:02:44.7]} 1-0

[Event "*** Titled Tuesday 3|2 Blitz (Early)"]
[Site "Chess.com"]
[Date "2016.12.06"]
[Round "6"]
[White "Zhani-Z"]
[Black "Aguiar94"]
[Result "0-1"]
[WhiteElo "2276"]
[BlackElo "2364"]
[TimeControl "180+2"]
[EndTime "12:16:15 PST"]
[Termination "Aguiar94 won by resignation"]

1. d4 {[%clk 0:03:00.2]} 1... Nf6 {[%clk 0:03:00.2]} 2. c4 {[%clk 0:03:00.5]}
2... e6 {[%clk 0:03:00.6]} 3. Nc3 {[%clk 0:03:00.2]} 3... Bb4 {[%clk 0:03:01.9]}
4. e3 {[%clk 0:03:00.6]} 4... O-O {[%clk 0:03:03.1]} 5. Ne2 {[%clk 0:03:01]}
5... d5 {[%clk 0:03:01.4]} 6. a3 {[%clk 0:03:01.6]} 6... Be7 {[%clk 0:03:00.4]}
7. cxd5 {[%clk 0:03:02]} 7... exd5 {[%clk 0:03:00.3]} 8. b4 {[%clk 0:03:02.9]}
8... c6 {[%clk 0:02:59.8]} 9. Ng3 {[%clk 0:03:03]} 9... Re8 {[%clk 0:02:55.5]}
10. Bd3 {[%clk 0:03:02.6]} 10... Nbd7 {[%clk 0:02:56.9]} 11. O-O {[%clk
0:03:02.4]} 11... Nf8 {[%clk 0:02:52.5]} 12. Rb1 {[%clk 0:03:02.4]} 12... Bd6
{[%clk 0:02:50.7]} 13. a4 {[%clk 0:02:36.6]} 13... Ng4 {[%clk 0:02:37.1]} 14. h3
{[%clk 0:01:26.6]} 14... Nf6 {[%clk 0:02:33]} 15. Nf5 {[%clk 0:01:04.1]} 15...
Bc7 {[%clk 0:02:32.5]} 16. Qf3 {[%clk 0:01:03.2]} 16... Ne6 {[%clk 0:02:23.2]}
17. h4 {[%clk 0:00:59.9]} 17... g6 {[%clk 0:02:18.2]} 18. Nh6+ {[%clk 0:00:40]}
18... Kg7 {[%clk 0:02:19.3]} 19. e4 {[%clk 0:00:21.6]} 19... Nxd4 {[%clk
0:02:16.3]} 20. Qd1 {[%clk 0:00:20.4]} 20... dxe4 {[%clk 0:02:15.2]} 21. Bc4
{[%clk 0:00:19.8]} 21... Qd6 {[%clk 0:02:12.3]} 22. g3 {[%clk 0:00:19.9]} 22...
e3 {[%clk 0:02:10.5]} 23. f4 {[%clk 0:00:15.4]} 23... Kxh6 {[%clk 0:02:07.9]}
0-1

[Event "*** Titled Tuesday 3|2 Blitz (Early)"]
[Site "Chess.com"]
[Date "2016.12.06"]
[Round "6"]
[White "Wilsonpalencia"]
[Black "Genghis_K"]
[Result "0-1"]
[WhiteElo "2397"]
[BlackElo "2676"]
[TimeControl "180+2"]
[EndTime "12:16:16 PST"]
[Termination "Genghis_K won by resignation"]

1. e4 {[%clk 0:03:02]} 1... c5 {[%clk 0:02:56.8]} 2. Nf3 {[%clk 0:03:01]} 2...
d6 {[%clk 0:02:58.1]} 3. d4 {[%clk 0:03:00.8]} 3... cxd4 {[%clk 0:03:00]} 4.
Nxd4 {[%clk 0:03:00.8]} 4... Nf6 {[%clk 0:03:01.7]} 5. Nc3 {[%clk 0:03:00.6]}
5... a6 {[%clk 0:03:02.9]} 6. f3 {[%clk 0:02:59.7]} 6... e5 {[%clk 0:03:04]} 7.
Nb3 {[%clk 0:02:59]} 7... Be6 {[%clk 0:03:05.6]} 8. Be3 {[%clk 0:02:58.3]} 8...
h5 {[%clk 0:03:05.8]} 9. Qd2 {[%clk 0:02:44.7]} 9... Nbd7 {[%clk 0:03:06.5]} 10.
Nd5 {[%clk 0:02:43.1]} 10... Nxd5 {[%clk 0:03:02.2]} 11. exd5 {[%clk 0:02:43.5]}
11... Bf5 {[%clk 0:03:03.8]} 12. Na5 {[%clk 0:02:33.6]} 12... Qc7 {[%clk
0:03:01.9]} 13. c4 {[%clk 0:02:32.1]} 13... Be7 {[%clk 0:02:57.3]} 14. Be2
{[%clk 0:02:31.1]} 14... O-O {[%clk 0:02:54.3]} 15. O-O {[%clk 0:02:22.6]} 15...
Bg6 {[%clk 0:02:52.2]} 16. b4 {[%clk 0:02:20.7]} 16... f5 {[%clk 0:02:23.7]} 17.
Rac1 {[%clk 0:02:17.3]} 17... Rad8 {[%clk 0:02:07.6]} 18. Rfd1 {[%clk
0:02:13.9]} 18... Nf6 {[%clk 0:02:02.2]} 19. Bd3 {[%clk 0:02:08.8]} 19... Rf7
{[%clk 0:01:55.5]} 20. Qf2 {[%clk 0:02:02.2]} 20... Re8 {[%clk 0:01:45.5]} 21.
Bc2 {[%clk 0:01:57.1]} 21... e4 {[%clk 0:01:43]} 22. Ba4 {[%clk 0:01:51.4]}
22... Ref8 {[%clk 0:01:44.5]} 23. Bd4 {[%clk 0:01:35]} 23... f4 {[%clk
0:01:34.3]} 24. c5 {[%clk 0:01:18.4]} 24... dxc5 {[%clk 0:01:26.5]} 25. Bxc5
{[%clk 0:01:11.2]} 25... e3 {[%clk 0:01:22.5]} 0-1

[Event "*** Titled Tuesday 3|2 Blitz (Early)"]
[Site "Chess.com"]
[Date "2016.12.06"]
[Round "6"]
[White "DanielNaroditsky"]
[Black "Zaven_ChessMood"]
[Result "1/2-1/2"]
[WhiteElo "2708"]
[BlackElo "2826"]
[TimeControl "180+2"]
[EndTime "12:16:34 PST"]
[Termination "Game drawn by repetition"]

1. d4 {[%clk 0:03:02]} 1... d5 {[%clk 0:02:58.1]} 2. Bf4 {[%clk 0:03:03.4]} 2...
Nf6 {[%clk 0:02:58.4]} 3. e3 {[%clk 0:03:04.3]} 3... g6 {[%clk 0:02:59.6]} 4.
Nf3 {[%clk 0:03:01.1]} 4... Bg7 {[%clk 0:03:01.1]} 5. h3 {[%clk 0:03:02.7]} 5...
O-O {[%clk 0:03:01.9]} 6. Be2 {[%clk 0:03:04.1]} 6... c5 {[%clk 0:03:02.6]} 7.
c3 {[%clk 0:03:03.3]} 7... Nc6 {[%clk 0:03:02.9]} 8. Nbd2 {[%clk 0:03:02.8]}
8... a5 {[%clk 0:03:02]} 9. a4 {[%clk 0:02:52.6]} 9... Bf5 {[%clk 0:03:01.7]}
10. dxc5 {[%clk 0:02:49.2]} 10... Nd7 {[%clk 0:02:57.3]} 11. Nb3 {[%clk
0:02:47.9]} 11... e5 {[%clk 0:02:56.4]} 12. Bg5 {[%clk 0:02:43.4]} 12... Nf6
{[%clk 0:02:53.7]} 13. O-O {[%clk 0:02:41.1]} 13... Be6 {[%clk 0:02:52.8]} 14.
Bb5 {[%clk 0:02:41]} 14... Qc7 {[%clk 0:02:52.7]} 15. Bxf6 {[%clk 0:02:34.4]}
15... Bxf6 {[%clk 0:02:53.7]} 16. Nbd2 {[%clk 0:02:36.3]} 16... Rad8 {[%clk
0:02:51.2]} 17. Qe2 {[%clk 0:02:34.1]} 17... Be7 {[%clk 0:02:47.8]} 18. Bxc6
{[%clk 0:02:15.6]} 18... bxc6 {[%clk 0:02:47.1]} 19. b4 {[%clk 0:02:16.9]} 19...
f5 {[%clk 0:02:41]} 20. Nb3 {[%clk 0:01:46.3]} 20... axb4 {[%clk 0:02:39.5]} 21.
cxb4 {[%clk 0:01:48.2]} 21... d4 {[%clk 0:02:38.5]} 22. Na5 {[%clk 0:01:32.2]}
22... d3 {[%clk 0:02:36.5]} 23. Qd2 {[%clk 0:01:32.1]} 23... e4 {[%clk
0:02:34.8]} 24. Nd4 {[%clk 0:01:32.7]} 24... Bd5 {[%clk 0:02:35.5]} 25. b5
{[%clk 0:01:07.3]} 25... cxb5 {[%clk 0:02:34.4]} 26. axb5 {[%clk 0:01:08.2]}
26... Bxc5 {[%clk 0:02:30.1]} 27. Rfc1 {[%clk 0:01:08.7]} 27... Qb6 {[%clk
0:02:26.5]} 28. Nac6 {[%clk 0:01:07.3]} 28... Ra8 {[%clk 0:02:24.9]} 29. Qc3
{[%clk 0:01:01.1]} 29... Bd6 {[%clk 0:02:23.1]} 30. Rxa8 {[%clk 0:00:50.7]}
30... Rxa8 {[%clk 0:02:23.1]} 31. Nxf5 {[%clk 0:00:52.3]} 31... gxf5 {[%clk
0:02:19.8]} 32. Qf6 {[%clk 0:00:53.6]} 32... d2 {[%clk 0:01:58.3]} 33. Qg5+
{[%clk 0:00:39.1]} 33... Kh8 {[%clk 0:01:52.2]} 34. Qf6+ {[%clk 0:00:40.1]}
34... Kg8 {[%clk 0:01:53.4]} 35. Qg5+ {[%clk 0:00:42]} 35... Kh8 {[%clk
0:01:44.7]} 36. Qf6+ {[%clk 0:00:42.8]} 36... Kg8 {[%clk 0:01:46.1]} 37. Qg5+
{[%clk 0:00:44.1]} 1/2-1/2

[Event "*** Titled Tuesday 3|2 Blitz (Early)"]
[Site "Chess.com"]
[Date "2016.12.06"]
[Round "6"]
[White "NewBornNow"]
[Black "Evgeny_Levin"]
[Result "0-1"]
[WhiteElo "2581"]
[BlackElo "2731"]
[TimeControl "180+2"]
[EndTime "12:16:43 PST"]
[Termination "Evgeny_Levin won by checkmate"]

1. e4 {[%clk 0:03:02]} 1... c5 {[%clk 0:03:00.7]} 2. Nf3 {[%clk 0:03:02.3]} 2...
d6 {[%clk 0:03:02]} 3. d4 {[%clk 0:03:03.4]} 3... cxd4 {[%clk 0:03:03]} 4. Nxd4
{[%clk 0:03:05.3]} 4... Nf6 {[%clk 0:03:04.4]} 5. Nc3 {[%clk 0:03:06.4]} 5... a6
{[%clk 0:03:05.5]} 6. Be2 {[%clk 0:03:07.6]} 6... g6 {[%clk 0:03:04]} 7. g4
{[%clk 0:03:05.3]} 7... h6 {[%clk 0:03:04.1]} 8. h4 {[%clk 0:02:59.5]} 8... Bg7
{[%clk 0:03:01.6]} 9. Rg1 {[%clk 0:03:00.6]} 9... Nc6 {[%clk 0:02:58.8]} 10. Be3
{[%clk 0:03:01.2]} 10... h5 {[%clk 0:02:53.6]} 11. g5 {[%clk 0:02:59.8]} 11...
Ng4 {[%clk 0:02:53.5]} 12. Bxg4 {[%clk 0:03:00.7]} 12... hxg4 {[%clk 0:02:48]}
13. Nd5 {[%clk 0:03:01]} 13... Ne5 {[%clk 0:02:28.8]} 14. Qe2 {[%clk 0:02:50.9]}
14... e6 {[%clk 0:02:28.7]} 15. Nf6+ {[%clk 0:02:29.5]} 15... Bxf6 {[%clk
0:02:28.6]} 16. gxf6 {[%clk 0:02:30.6]} 16... Rxh4 {[%clk 0:02:28.9]} 17. O-O-O
{[%clk 0:02:31.1]} 17... Qxf6 {[%clk 0:02:26.5]} 18. Kb1 {[%clk 0:02:23.9]}
18... Bd7 {[%clk 0:02:14.1]} 19. Qd2 {[%clk 0:02:22.6]} 19... Nc4 {[%clk
0:02:11.7]} 20. Qb4 {[%clk 0:02:22.7]} 20... b5 {[%clk 0:01:56.3]} 21. Bc1
{[%clk 0:02:09.4]} 21... e5 {[%clk 0:01:34.9]} 22. Ne2 {[%clk 0:02:03.4]} 22...
Qxf2 {[%clk 0:01:34.9]} 23. Nc3 {[%clk 0:02:03.3]} 23... a5 {[%clk 0:01:09.4]}
24. Qb3 {[%clk 0:02:03]} 24... a4 {[%clk 0:01:10.5]} 25. Qb4 {[%clk 0:02:03.6]}
25... Rh2 {[%clk 0:01:12]} 26. Nd5 {[%clk 0:01:51.3]} 26... Qxc2+ {[%clk
0:01:07.4]} 27. Ka1 {[%clk 0:01:51.7]} 27... a3 {[%clk 0:01:08.8]} 28. Nc7+
{[%clk 0:01:51]} 28... Kf8 {[%clk 0:01:05.6]} 29. Nxa8 {[%clk 0:01:50]} 29...
axb2+ {[%clk 0:01:06.3]} 30. Bxb2 {[%clk 0:01:50.3]} 30... Qxb2+ {[%clk
0:00:52.6]} 31. Qxb2 {[%clk 0:01:50.8]} 31... Nxb2 {[%clk 0:00:51.7]} 32. Rxd6
{[%clk 0:01:50]} 32... Be6 {[%clk 0:00:53.1]} 33. Nc7 {[%clk 0:01:45.2]} 33...
Bc4 {[%clk 0:00:54.1]} 34. Rb1 {[%clk 0:01:30.3]} 34... Na4 {[%clk 0:00:52.3]}
35. Nxb5 {[%clk 0:01:29.4]} 35... Rxa2# {[%clk 0:00:52.5]} 0-1

[Event "*** Titled Tuesday 3|2 Blitz (Early)"]
[Site "Chess.com"]
[Date "2016.12.06"]
[Round "6"]
[White "Divertissement"]
[Black "pastouche06"]
[Result "1-0"]
[WhiteElo "2436"]
[BlackElo "2307"]
[TimeControl "180+2"]
[EndTime "12:17:34 PST"]
[Termination "Divertissement won by resignation"]

1. Nf3 {[%clk 0:03:02]} 1... d5 {[%clk 0:03:00.2]} 2. g3 {[%clk 0:03:03.9]} 2...
Nf6 {[%clk 0:02:59.4]} 3. Bg2 {[%clk 0:03:05.5]} 3... c5 {[%clk 0:03:00.5]} 4.
O-O {[%clk 0:03:07.4]} 4... e6 {[%clk 0:02:59.7]} 5. d4 {[%clk 0:03:08.7]} 5...
cxd4 {[%clk 0:03:00.4]} 6. Nxd4 {[%clk 0:03:10.6]} 6... e5 {[%clk 0:03:01.8]} 7.
Nb3 {[%clk 0:03:11.5]} 7... Nc6 {[%clk 0:02:58.6]} 8. Nc3 {[%clk 0:03:08.4]}
8... d4 {[%clk 0:02:58.8]} 9. Ne4 {[%clk 0:03:09.3]} 9... Be7 {[%clk 0:02:45.9]}
10. e3 {[%clk 0:03:05.9]} 10... O-O {[%clk 0:02:39.7]} 11. exd4 {[%clk
0:03:06.6]} 11... exd4 {[%clk 0:02:39.5]} 12. Re1 {[%clk 0:02:28]} 12... Bf5
{[%clk 0:02:21.7]} 13. Nbc5 {[%clk 0:02:14.2]} 13... Qb6 {[%clk 0:02:17.3]} 14.
Nd3 {[%clk 0:02:05.5]} 14... Rad8 {[%clk 0:02:10.7]} 15. Nd2 {[%clk 0:01:37.7]}
15... Rfe8 {[%clk 0:02:01.5]} 16. Nc4 {[%clk 0:01:38.4]} 16... Qa6 {[%clk
0:01:59.2]} 17. b3 {[%clk 0:01:32.4]} 17... Nb4 {[%clk 0:01:49]} 18. Rxe7 {[%clk
0:01:19.4]} 18... Rxe7 {[%clk 0:01:43.4]} 19. Nxb4 {[%clk 0:01:20.6]} 19... Qe6
{[%clk 0:01:44.9]} 20. Bg5 {[%clk 0:01:14.7]} 20... h6 {[%clk 0:01:43.4]} 21.
Bxf6 {[%clk 0:01:15.4]} 21... gxf6 {[%clk 0:01:40.8]} 22. Nd3 {[%clk 0:01:07.6]}
22... b5 {[%clk 0:01:39.2]} 23. Nd2 {[%clk 0:01:05.6]} 23... Qe2 {[%clk
0:01:35.1]} 24. Bf1 {[%clk 0:00:48.6]} 24... Qxd1 {[%clk 0:01:33.2]} 25. Rxd1
{[%clk 0:00:50.5]} 25... Rc8 {[%clk 0:01:34.7]} 26. Nf3 {[%clk 0:00:52.1]} 26...
Rd7 {[%clk 0:01:33.5]} 27. Rd2 {[%clk 0:00:51.7]} 27... Be4 {[%clk 0:01:28.8]}
28. Nde1 {[%clk 0:00:48.7]} 28... Rc3 {[%clk 0:01:18.8]} 29. Nxd4 {[%clk
0:00:45.5]} 29... b4 {[%clk 0:01:17.2]} 30. f3 {[%clk 0:00:43.6]} 30... Bb7
{[%clk 0:01:16.9]} 31. Bc4 {[%clk 0:00:44.3]} 31... a5 {[%clk 0:01:16.7]} 32.
Kf2 {[%clk 0:00:45.2]} 32... a4 {[%clk 0:01:17.1]} 33. Ke2 {[%clk 0:00:30.1]}
33... Re7+ {[%clk 0:01:17.4]} 34. Kf2 {[%clk 0:00:30.6]} 34... a3 {[%clk
0:01:15.2]} 35. Nd3 {[%clk 0:00:28]} 35... Rc7 {[%clk 0:01:10.1]} 36. Nxb4
{[%clk 0:00:28.4]} 1-0

[Event "*** Titled Tuesday 3|2 Blitz (Early)"]
[Site "Chess.com"]
[Date "2016.12.06"]
[Round "6"]
[White "jncool68"]
[Black "dretch"]
[Result "1-0"]
[WhiteElo "2522"]
[BlackElo "2598"]
[TimeControl "180+2"]
[EndTime "12:17:52 PST"]
[Termination "jncool68 won by resignation"]

1. e4 {[%clk 0:03:02]} 1... e6 {[%clk 0:03:01]} 2. d4 {[%clk 0:03:02.6]} 2... d5
{[%clk 0:03:02.9]} 3. Nc3 {[%clk 0:03:04.1]} 3... Nf6 {[%clk 0:03:03.9]} 4. e5
{[%clk 0:03:05.3]} 4... Nfd7 {[%clk 0:03:05.6]} 5. f4 {[%clk 0:03:06.6]} 5... c5
{[%clk 0:03:07.3]} 6. Nf3 {[%clk 0:03:07.9]} 6... Nc6 {[%clk 0:03:09]} 7. Be3
{[%clk 0:03:09.2]} 7... cxd4 {[%clk 0:03:09.7]} 8. Nxd4 {[%clk 0:03:10]} 8...
Bc5 {[%clk 0:03:11.6]} 9. Qd2 {[%clk 0:03:10.4]} 9... O-O {[%clk 0:03:13.2]} 10.
O-O-O {[%clk 0:03:11.3]} 10... a6 {[%clk 0:03:14.9]} 11. Nb3 {[%clk 0:03:10.8]}
11... Be7 {[%clk 0:03:15]} 12. Bd3 {[%clk 0:03:10.9]} 12... Nb4 {[%clk 0:03:12]}
13. Kb1 {[%clk 0:03:11.1]} 13... Nxd3 {[%clk 0:03:12.3]} 14. cxd3 {[%clk
0:03:09.7]} 14... b6 {[%clk 0:03:10.1]} 15. Ne2 {[%clk 0:03:10.3]} 15... Nc5
{[%clk 0:03:10.3]} 16. Ned4 {[%clk 0:03:10.4]} 16... Bd7 {[%clk 0:03:09.6]} 17.
g4 {[%clk 0:03:10.8]} 17... a5 {[%clk 0:03:04.9]} 18. f5 {[%clk 0:03:11.9]}
18... a4 {[%clk 0:03:05.9]} 19. Nc1 {[%clk 0:03:13]} 19... f6 {[%clk 0:03:01.5]}
20. exf6 {[%clk 0:02:53.9]} 20... Bxf6 {[%clk 0:03:01.8]} 21. g5 {[%clk
0:02:55.3]} 21... Bxd4 {[%clk 0:02:59]} 22. Bxd4 {[%clk 0:02:55.6]} 22... Rxf5
{[%clk 0:02:59.1]} 23. Rde1 {[%clk 0:02:50.8]} 23... Qxg5 {[%clk 0:02:51]} 24.
Qb4 {[%clk 0:02:48.7]} 24... Qh4 {[%clk 0:02:48.1]} 25. Bxc5 {[%clk 0:02:47]}
25... Qxb4 {[%clk 0:02:29.1]} 26. Bxb4 {[%clk 0:02:47.8]} 26... e5 {[%clk
0:02:30.8]} 27. Rhf1 {[%clk 0:02:47]} 27... Rh5 {[%clk 0:02:14.9]} 28. Rf2
{[%clk 0:02:48]} 28... Re8 {[%clk 0:02:13.8]} 29. a3 {[%clk 0:02:46.4]} 29...
Bf5 {[%clk 0:02:10.2]} 30. Ka1 {[%clk 0:02:46.2]} 30... g6 {[%clk 0:02:07.6]}
31. Bd6 {[%clk 0:02:45.1]} 31... e4 {[%clk 0:01:56.4]} 32. dxe4 {[%clk
0:02:46.1]} 32... Bxe4 {[%clk 0:01:52.3]} 33. Bg3 {[%clk 0:02:39]} 33... Rc8
{[%clk 0:01:40.8]} 34. Ne2 {[%clk 0:02:39.6]} 34... Rc2 {[%clk 0:01:38.4]} 35.
Nc3 {[%clk 0:02:38.8]} 35... Rxf2 {[%clk 0:01:37.9]} 36. Bxf2 {[%clk 0:02:39.9]}
36... Rxh2 {[%clk 0:01:35.8]} 37. Nxe4 {[%clk 0:02:40.9]} 37... dxe4 {[%clk
0:01:37.3]} 38. Bxb6 {[%clk 0:02:42.1]} 38... Rh4 {[%clk 0:01:33]} 39. b3 {[%clk
0:02:41.3]} 39... Rh3 {[%clk 0:01:25.2]} 40. Be3 {[%clk 0:02:38.3]} 40... axb3
{[%clk 0:01:18.7]} 41. Kb2 {[%clk 0:02:34.8]} 41... Kf7 {[%clk 0:01:18.3]} 42.
a4 {[%clk 0:02:35.9]} 42... Rh5 {[%clk 0:01:02.3]} 43. Kxb3 {[%clk 0:02:36.9]}
43... Ke6 {[%clk 0:01:01.2]} 44. Kb4 {[%clk 0:02:37.4]} 44... Kd7 {[%clk
0:00:57.7]} 45. Rc1 {[%clk 0:02:38.4]} 45... Rh3 {[%clk 0:00:55.6]} 46. Rc3
{[%clk 0:02:39.2]} 46... g5 {[%clk 0:00:55.4]} 47. a5 {[%clk 0:02:40.4]} 47...
Rh6 {[%clk 0:00:42.2]} 48. Bxg5 {[%clk 0:02:36.6]} 48... Rc6 {[%clk 0:00:43.5]}
49. Rh3 {[%clk 0:02:34.4]} 49... h6 {[%clk 0:00:27.4]} 50. Bxh6 {[%clk
0:02:34.5]} 50... Kc8 {[%clk 0:00:25.1]} 51. Kb5 {[%clk 0:02:31.6]} 51... Rc2
{[%clk 0:00:21.3]} 52. Be3 {[%clk 0:02:32.2]} 52... Rb2+ {[%clk 0:00:20.9]} 53.
Kc6 {[%clk 0:02:28.7]} 53... Kd8 {[%clk 0:00:13.9]} 54. a6 {[%clk 0:02:28]}
54... Ra2 {[%clk 0:00:11.9]} 55. a7 {[%clk 0:02:28.3]} 55... Ke7 {[%clk
0:00:12.4]} 56. Rh8 {[%clk 0:02:26.9]} 56... Ke6 {[%clk 0:00:12.7]} 57. a8=Q
{[%clk 0:02:25.4]} 57... Rxa8 {[%clk 0:00:13.3]} 1-0